Cogmind - Beta 12 @@@ ROGUE MODE // 2023.07.12 @ 23:57:23 Player: Sara Result: Self-destructed Performance ------------- Evolutions (1) 500 Regions Visited (3) 600 Robots Destroyed (40) 200 Value Destroyed (862) 862 Prototype IDs (1) 20 Alien Tech Used (0) 0 Bonus (0) 0 TOTAL SCORE: 2182 Bonus ------- None Cogmind --------- Core Integrity 116/400 Matter 300/300 Energy 100/100 System Corruption 0% Temperature Cool (0) Movement Core (200) Ox3 Location -9/Materials Parts ------- > --- POWER (1) -------- (None) > --- PROPULSION (2) --- (None) > --- UTILITY (4) ------ Medium Storage Unit Terrain Scan Processor > --- WEAPON (2) ------- Hammer > --- INVENTORY (10) --- Ion Engine Aluminum Leg Aluminum Leg Improved Heat Sink Faulty Experimental Sensor Array Signal Interpreter Medium Laser Medium Laser Peak State ------------ > --- POWER ------------ Ion Engine > --- PROPULSION ------- Aluminum Leg Aluminum Leg > --- UTILITY ---------- Medium Storage Unit Experimental Sensor Array > --- WEAPON ----------- Medium Laser Hammer > --- INVENTORY -------- Ion Engine Aluminum Leg Aluminum Leg Aluminum Leg Improved Heat Sink Signal Interpreter Improved Terrain Scanner Terrain Scan Processor Medium Laser Medium Laser [Rating: 16] Favorites ----------- Power Ion Engine Engine Ion Engine Propulsion Light Treads Treads Light Treads Leg Aluminum Leg Utility Small Storage Unit Device Seismic Detector Storage Small Storage Unit Processor Terrain Scan Processor Weapon Medium Laser Energy Gun Medium Laser Ballistic Gun Light Assault Rifle Impact Weapon Hammer Build | -11 -10 -10 -9 ------- Run | Jun Mat Min Mat Slots Evolved 2 | . . . 2 Power . | . . . . Propulsion . | . . . . Utility 2 | . . . 2 Weapon . | . . . . Parts Attached 24 | 7 11 3 3 Power 2 | 1 . . 1 Engine 2 | 1 . . 1 Core . | . . . . Reactor . | . . . . Propulsion 6 | 2 2 1 1 Treads 2 | 2 . . . Leg 4 | . 2 1 1 Wheel . | . . . . Hover . | . . . . Flight . | . . . . Utility 9 | 2 4 2 1 Device 5 | 1 2 2 . Storage 3 | 1 2 . . Processor 1 | . . . 1 Hackware . | . . . . Protection . | . . . . Artifact . | . . . . Weapon 7 | 2 5 . . Energy Gun 4 | . 4 . . Energy Cannon . | . . . . Ballistic Gun 2 | 2 . . . Ballistic Cannon . | . . . . Launcher . | . . . . Special Weapon . | . . . . Impact Weapon 1 | . 1 . . Slashing Weapon . | . . . . Piercing Weapon . | . . . . Special Melee Weapon . | . . . . Unidentified Prototypes 1 | . . 1 . Parts Lost 8 | . 1 . 7 Power 2 | . . . 2 Propulsion 4 | . 1 . 3 Utility 1 | . . . 1 Weapon 1 | . . . 1 Highest Loss Streak 4 | . 1 . 4 To Critical Strikes . | . . . . Average Slot Usage (%) 93 | . 99 100 64 Engine 12 | . 14 14 3 Treads 16 | . 22 . . Leg 9 | . 5 28 14 Device 12 | . 14 14 6 Storage 13 | . 14 14 11 Processor 1 | . . . 11 Energy Gun 22 | . 27 14 6 Impact Weapon 3 | . . 14 11 Naked Turns . | . . . . Heaviest Build 50 | 13 50 20 20 Greatest Support 40 | 40 40 20 23 Greatest Overweight (x) 3 | . 2 . 3 Average Overweight (x) . | . . . 1 Largest Inventory Capacity 20 | 8 20 10 10 Average Capacity 11 | 7 12 10 10 Most Carried 20 | 5 20 10 9 Average Carried 9 | 3 10 9 8 Final Capacity 10 | 8 10 10 10 Final Carried 10 | 5 10 9 8 Class Distribution -------------------- 91% | Mutant 8% | Scavenger-Mutant Dominant Class ---------------- Mutant | -10/Materials Mutant | -10/Mines Scavenger-Mutant | -9/Materials Resources | -11 -10 -10 -9 ----------- Run | Jun Mat Min Mat Matter Collected 450 | 300 105 30 15 Remotely . | . . . . Salvage Created 1545 | 189 911 109 336 Parts 69 | 13 34 3 19 Haulers Intercepted 2 | . 1 . 1 Recyclers Shooed 3 | 1 2 . . Parts Field Recycled . | . . . . Retrieved Matter . | . . . . Parts Self-Destructed . | . . . . Prevented . | . . . . Kills | -11 -10 -10 -9 ------- Run | Jun Mat Min Mat Combat Hostiles Destroyed 22 | . 11 2 9 Melee 7 | . . 2 5 Guns 10 | . 10 . . Classes Destroyed 9 | 3 4 . 2 Worker 1 | 1 . . . Builder 3 | . 2 1 . Tunneler 4 | 4 . . . Hauler 2 | . 1 . 1 Recycler 5 | 1 4 . . Watcher 3 | . 2 . 1 Swarmer 4 | . . . 4 Grunt 16 | . 11 2 3 Sentry 2 | . . . 2 Best Kill Streak 6 | 1 6 2 4 Combat Bots Only 4 | . 3 1 4 Max Kills in Single Turn 1 | 1 1 1 1 Gunslinging . | . . . . Exploded . | . . . . Melee 1 | . . 1 1 Uniques/NPCs Destroyed . | . . . . Combat | -11 -10 -10 -9 -------- Run | Jun Mat Min Mat Damage Taken 1513 | . 570 111 832 Core 462 | . 148 30 284 Absorbed by Shields . | . . . . Core Remaining (%) 64 | 100 . 28 . Volleys Fired 71 | 15 55 . 1 Largest 2 | 2 2 . 1 Hottest 100 | 40 100 . 50 Shots Fired 138 | 30 107 . 1 Gun 138 | 30 107 . 1 Cannon . | . . . . Launcher . | . . . . Special . | . . . . Kinetic 30 | 30 . . . Thermal 108 | . 107 . 1 Explosive . | . . . . Electromagnetic . | . . . . Robot Hit Streak 12 | 7 12 . . Robot Miss Streak 2 | 1 2 . . Penetration Max . | . . . . Secondary Targets . | . . . . Shots Hit Robots 147 | 20 82 8 37 Core Hits 56 | 10 37 3 6 Critical Kills 3 | . . . 3 Critical Parts Destroyed 5 | . . 1 4 Critical Strikes 22 | . 12 1 9 Burn 12 | . 12 . . Smash 10 | . . 1 9 Melee Attacks 68 | . 1 8 59 Impact 68 | . 1 8 59 Slashing . | . . . . Piercing . | . . . . Sneak Attacks 5 | . . 2 3 Combat Hostiles . | . . . . Follow-up Attacks . | . . . . Damage Inflicted 2446 | 163 1062 265 956 Guns 1195 | 163 1032 . . Cannons . | . . . . Explosions . | . . . . Melee 1250 | . 29 265 956 Ramming 1 | . 1 . . Kinetic 163 | 163 . . . Thermal 1032 | . 1032 . . Explosive . | . . . . Electromagnetic . | . . . . Impact 1250 | . 29 265 956 Slashing . | . . . . Piercing . | . . . . Highest Corruption . | . . . . Average Corruption . | . . . . Corruption Purged . | . . . . Corruption Blocked . | . . . . Overload Shots . | . . . . Overflow Damage 208 | . . 54 154 Projectiles . | . . . . Explosions . | . . . . Melee 208 | . . 54 154 Knockbacks 6 | . . . 6 Impact 6 | . . . 6 Kinetic . | . . . . Secondary . | . . . . Self-Inflicted Damage . | . . . . Shots . | . . . . Rammed 1 | . 1 . . Targets Rammed 1 | . 1 . . Kicked . | . . . . Crushed . | . . . . Highest Temperature 296 | . 296 . 6 Average Temperature 81 | . 83 . 2 Received Heat Transfer 705 | . 357 63 285 Effects 1 | . 1 . . Interference 1 | . 1 . . Siege Activations . | . . . . Robots Corrupted . | . . . . Combat Hostiles . | . . . . Parts Fried 8 | . . 3 5 Impact Corruptions 14 | . . 4 10 Robots Melted 1 | . 1 . . Combat Hostiles 1 | . 1 . . Parts Melted 15 | . 15 . . Heat Transferred 3959 | . 3959 . . Parts Sabotaged . | . . . . Parts Stolen . | . . . . Parts Stripped . | . . . . Power Chain Reactions . | . . . . Missiles Intercepted . | . . . . Alert | -11 -10 -10 -9 ------- Run | Jun Mat Min Mat Peak Influence 299 | 30 154 134 299 Initial 52 | . 19 34 52 Average 80 | 14 68 75 194 Maximum Alert Level 1 | . . . 1 Low Security (%) 91 | 100 100 100 43 Level 1 8 | . . . 56 Level 2 . | . . . . Level 3 . | . . . . Level 4 . | . . . . Level 5 . | . . . . High Security . | . . . . Max Security . | . . . . Squads Dispatched 5 | . 3 . 2 Investigation 5 | . 3 . 2 Extermination . | . . . . Reinforcement . | . . . . Assault . | . . . . Garrison . | . . . . Intercept . | . . . . Searches Triggered . | . . . . Construction Impeded . | . . . . Haulers Reinforced . | . . . . Active Scanning Responses . | . . . . Cargo Convoy Interrupts . | . . . . Stealth | -11 -10 -10 -9 --------- Run | Jun Mat Min Mat Distress Signals 2 | . 2 . . Communications Jammed . | . . . . Distress Signals . | . . . . Times Spotted 38 | . 20 4 14 Peak Tracking Total 4 | . 4 2 4 Tactical Retreats 3 | . 2 1 . Traps | -11 -10 -10 -9 ------- Run | Jun Mat Min Mat Traps Triggered 1 | . 1 . . Indirectly . | . . . . Trap Hack Attempts . | . . . . Triggered . | . . . . Disarmed . | . . . . Reprogrammed . | . . . . Reused . | . . . . Traps Extracted . | . . . . Installed . | . . . . Triggered . | . . . . Machines | -11 -10 -10 -9 ---------- Run | Jun Mat Min Mat Machines Disabled 1 | . . . 1 Max in Single Turn 1 | . . . 1 Machines Repaired . | . . . . Machines Sabotaged . | . . . . Overloaded Fab Kills . | . . . . Hacking | -11 -10 -10 -9 --------- Run | Jun Mat Min Mat Machines Accessed 8 | . 6 . 2 Terminals 7 | . 6 . 1 Fabricators . | . . . . Repair Stations 1 | . . . 1 Recycling Units . | . . . . Scanalyzers . | . . . . Garrison Access . | . . . . Total Hacks 25 | . 19 . 6 Successful 4 | . 2 . 2 Failed 21 | . 17 . 4 Catastrophic 6 | . 5 . 1 Database Lockouts . | . . . . Manual 16 | . 13 . 3 Terminals 22 | . 19 . 3 Fabricators . | . . . . Repair Stations 3 | . . . 3 Recycling Units . | . . . . Scanalyzers . | . . . . Garrison Access . | . . . . Terminal Hacks 1 | . 1 . . Robot Analysis 1 | . 1 . . Fabricator Hacks . | . . . . Repair Station Hacks 1 | . . . 1 Scan Component 1 | . . . 1 Recycling Unit Hacks . | . . . . Scanalyzer . | . . . . Garrison Access Hacks . | . . . . Unauthorized Hacks 2 | . 1 . 1 Terminals 2 | . 1 . 1 Operators 2 | . 1 . 1 Fabricators . | . . . . Repair Stations . | . . . . Recycling Units . | . . . . Scanalyzers . | . . . . Garrison Access . | . . . . Data Cores Recovered . | . . . . Used . | . . . . Hacking Detections 8 | . 6 . 2 Full Trace Events 6 | . 4 . 2 Feedback Events . | . . . . Feedback Blocked . | . . . . Robot Schematics Acquired . | . . . . Robots Built . | . . . . Authchips . | . . . . Time . | . . . . Total Robot Build Rating . | . . . . Part Schematics Acquired . | . . . . Parts Built . | . . . . Authchips . | . . . . Time . | . . . . Total Part Build Rating . | . . . . Parts Repaired . | . . . . Time . | . . . . Parts Recycled . | . . . . Recycled Matter . | . . . . Retrieved Matter . | . . . . Retrieved Components . | . . . . Parts Scanalyzed . | . . . . Part Schematics Acquired . | . . . . Parts Damaged . | . . . . Bothacking | -11 -10 -10 -9 ------------ Run | Jun Mat Min Mat Used RIF Installer . | . . . . Robots Hacked . | . . . . Non-combat . | . . . . Combat . | . . . . Robot Hacks Applied . | . . . . Relay Couplers Released . | . . . . Fabnet Peak Effective % . | . . . . Robots Rewired . | . . . . Allies Hacked . | . . . . Hacks Repelled . | . . . . Allies | -11 -10 -10 -9 -------- Run | Jun Mat Min Mat Total Allies . | . . . . Largest Group . | . . . . Highest-Rated Group . | . . . . Highest-Rated Ally . | . . . . Total Orders . | . . . . Ally Attacks . | . . . . Total Damage . | . . . . Kills . | . . . . Allies Corrupted . | . . . . Allies Melted . | . . . . Intel | -11 -10 -10 -9 ------- Run | Jun Mat Min Mat Robot Analysis Total 1 | . 1 . . Derelict Logs Recovered . | . . . . Drone Launches . | . . . . Drone Recoveries . | . . . . Exploration | -11 -10 -10 -9 ------------- Run | Jun Mat Min Mat Turns Passed 2727 | 386 1697 242 402 Spaces Moved 1207 | 198 709 171 129 Core 50 | 4 . . 46 Treads 766 | 194 572 . . Legs 391 | . 137 171 83 Wheels . | . . . . Hover . | . . . . Flight . | . . . . Fastest Speed 50 | 50 120 120 120 Average Speed 164 | 157 180 120 149 Slowest Speed 260 | 160 260 120 200 Overloaded Moves . | . . . . Propulsion Burnouts . | . . . . Robots Hopped . | . . . . Cave-ins Triggered . | . . . . Exploration Rate (%) 33 | 10 73 33 16 Regions Visited 3 Branch Regions 1 Pre-discovered Areas . | . . . . Known Exits Taken . | . . . . Unknown Exits Taken 3 | 1 1 1 . Scrap Searched 1 | . . 1 . Spaces Dug 2 | . . . 2 Terrain Destroyed 2 | . . . 2 Melee 2 | . . . 2 Projectile . | . . . . AOE . | . . . . Terrain Rammed . | . . . . Walls Destroyed . | . . . . Machines Disabled . | . . . . Actions | -11 -10 -10 -9 --------- Run | Jun Mat Min Mat Total 1692 | 245 1021 193 233 Wait 278 | 19 210 9 40 Move 1204 | 197 708 170 129 Hop . | . . . . Pick Up 33 | 7 24 1 1 Fast Attach 6 | 5 . . 1 Attach 6 | 2 2 . 2 Detach . | . . . . Swap 12 | . 9 3 . Drop 13 | . 11 2 . Fire 71 | 15 55 . 1 Melee 68 | . 1 8 59 Ram . | . . . . Kick . | . . . . Crush 1 | . 1 . . Escape Stasis . | . . . . Rewire . | . . . . Trap . | . . . . Miscellaneous . | . . . . Route ------- -11/Junkyard -10/Materials (discovered 3 exits: *Mat x2 / [*Min]) -10/Mines -9/Materials History --------- Turn | Location | Event 8 | -11/Junkyard | Discovered new exit (range 16) 387 | -11/Junkyard | Entered Materials 388 | -10/Materials | Build established: Mutant 536 | -10/Materials | Discovered new exit (range 16) 1293 | -10/Materials | Discovered new exit (range 5) 1732 | -10/Materials | Core integrity fell below 50% 1942 | -10/Materials | Discovered new exit (range 16) 2084 | -10/Materials | Entered Mines 2121 | -10/Mines | Met a Derelict bent on vengeance 2124 | -10/Mines | Found a damaged Exp. Sensor Array with a note attached 2127 | -10/Mines | Found Prototype Device 2128 | -10/Mines | Identified Exp. Sensor Array 2321 | -10/Mines | Discovered new exit (range 4) 2326 | -10/Mines | Entered Materials 2326 | -9/Materials | Evolved 2 slots: Utility x2 2595 | -9/Materials | Core integrity fell below 50% 2607 | -9/Materials | Lost 4 parts (1p1n1u1w) 2728 | -9/Materials | Self-destructed Last Messages --------------- 02608_ Imp. Aluminum Leg destroyed. 02611_ Destroyed Ion Engine. 02611_ G-34 Mercenary system corrupted by crushing effect. 02611_ G-34 Mercenary destroyed. 02614_ Sneak attack on M-13 Machinist. 02614_ Destroyed Wheel. 02614_ M-13 Machinist system corrupted by crushing effect. 02614_ M-13 Machinist knocked back. 02649_ K-01 Serf cleans the Atomic Centrifuge. 02661_ Connecting with Repair Station... >>Scan(Faulty Exp. Sensor Array) Scanning Faulty Exp. Sensor Array... Ready to Repair: Faulty Exp. Sensor Array Rating: 8p Time: 108 02661_ ALERT: Suspicious activity at Repair Station M002. Dispatching Investigation squad. 02661_ Repair Station disabled. 02692_ K-01 Serf cleans the Atomic Centrifuge. Map ----- +----------------------------------------------------+ | ????????#??#??#??# ##=]] ##?##??###+#?#? #?? | | ????????#???##?### ##=] #### #?? ###? | | ?????????##?###### ## ! ##?# ? ?#?? #?#? | | ????????#???##! ##+########?"?""?""??##???? | | #???#???????#! ==%= # """"?"" ?##??## | | ?#?###?##?#?#! T !%! / """"""" ?#?##?#? | | #?#?#???###?#! # """"?"? ######?? | | ?##??#????#?#! #######+#+# ""?"""" ?###???? | | ???##????##?##! ## ###? ? # ???###????? | | ?#?????##?####?#?# #?#?? ?""#?####???##??????? | | ???#?###?#?##?#??# #?# ??"# ###?#??????????? | | ###?############## ###???? ""?#????????????????? | | ???## # #?#? ?? ? #??##????????????? | | ????#" """ """ # #?????? ???# ?#?????????????? | | #?###" """ """ # ###?????"""#?##?????????????? | | ###?#" """ """ + ##? ""?#?? ?????????????? | | ##??# # %###??? ? ??????????????????? | | ###########+###### #####???#??????#????????????? | | # ##?####? ???????????????? | | #[ #????##? ? ?????????????? | | +=% """ """ """ #??##???????????????????? | | #%! """ """ """ #?#?????????????????????? | | # """ """ """ ##+####????????????????????? | | #" ## ##?? ????????????????? | | #T ##" #???? ???????????????? | | #" ##T@ #???? ???????????????? | | # ##" #?##?????????????????? | | # g/ #???? ???????????????? | | #################+############???#???????????????? | | ??#???## "?? # ? ??????#???#???????????????? | | #?##?#???? ??? # ??"?? ?????##?????????????????? | | #???? ?? ????? # "????? #???????????????????????? | | ? +????# ???? ??# "???"??????????????????????????? | | #????? #?? ?? ?# ""??? ??????#??????????????????? | | ? #?????????"?? # ?""???????????????????????????? | | ????????????"? # ?? ???#???????????????????????? | | ????? ??? ???? ?# ? ?? ?????????????????????????? | | ?????????????? ?? ??????????????????????????????? | | ?????????????????#???#???????????????????????????? | | ?????????????????????????????????????????????????? | | ?????????????????????????????????????????????????? | | ????o????????????????????????????????????????????? | | ?????????????????????????????????????????????????? | | ?????????????????????????????????????????????????? | | ?????????????????????????????????????????????????? | | ?????????????????????????????????????????????????? | | ?????????????????????????????????????????????????? | | ?????????????????????????????????????????????????? | | ?????????????????????????????????????????????????? | | ?????????????????????????????????????????????????? | +----------------------------------------------------+ Best States ------------- Heat Dissipation 39 Energy Generation 10 Energy Capacity 250 Matter Stores 300 Matter Capacity 300 Sight Range 16 Terrain Scan Range 16 Terrain Scan Density 85 Evasion (%) 55 Recoil Reduction 2 Item Schematics ----------------- None Robot Schematics ------------------ None Fabricated ------------ Nothing Alien Tech Used ----------------- None Achievements -------------- None Challenges ------------ None Game ------ Seed DerelictModifiedSource Manual? 0 Play Time 00:26:13 Cumulative 115.2 hours Start 2023.07.12 @ 23:33:30 End 2023.07.12 @ 23:57:23 Sessions 1 Manual Loads 0 Difficulty Rogue Special Mode None Game No. 163 Rogue 163 Adventurer 0 Explorer 0 Win Type - Total 1 Types 1/0/0/0/0/0/0/0/0 Lore% 60 Gallery% 59 Achievement% 50 Wizard Run 0 Options --------- ASCII 0 Keyboard 0 Movement Numpad Keybinds 0 Fullscreen 1 Font 18/X11Bold Map View 76x50 Tactical HUD 1 Map Filters NONE Filters NONE Steam 1 RUN: bac06670-75ef-4c32-81d7-d0d28bf814b6